bitfinex-derivatives/quotes_SOLF0:USTF0_20250808
["timestamp","ask_amount","ask_price","bid_price","bid_amount"]
[1754663837425,0.03820222,176.7,176.69,12.25939601]
[1754663838032,0.03820222,176.7,176.69,12.37939601]
[1754663838429,4.68526987,176.73,176.72,5.6579]
[1754663838623,7.80526987,176.73,176.72,113.7379]
[1754663838822,4.68526987,176.74,176.72,108.08]
[1754663839027,7.80526987,176.73,176.68,0.03914494]
[1754663839228,4.68526987,176.72,176.69,108.08]
[1754663839534,7.80526987,176.72,176.7,5.6586]
[1754663839729,3.12,176.71,176.69,108.11672025]
[1754663839929,4.68526987,176.7,176.69,108.11672025]
[1754663840131,7.80526987,176.7,176.69,108.11672025]
[1754663840328,6.21139431,176.7,176.63,18.23]
[1754663840528,3.12,176.64,176.63,18.23]
[1754663840828,10.90327535,176.64,176.63,18.23]
[1754663841224,6.21139431,176.64,176.63,18.23]
[1754663841427,12.46723569,176.64,176.63,18.23]
[1754663841629,15.35189032,176.64,176.56,2.97]
[1754663841825,6.25791432,176.58,176.56,2.97]
[1754663842031,10.07640896,176.57,176.55,108.08]
[1754663842232,11.85301673,176.56,176.55,103.83141423]
[1754663842430,11.85301673,176.56,176.55,109.49471423]
[1754663843234,7.16640896,176.56,176.55,109.49471423]
[1754663843438,7.16640896,176.56,176.55,103.83141423]
[1754663844037,7.10552801,176.56,176.55,112.46481423]
[1754663844440,7.10552801,176.56,176.55,103.83141423]
[1754663844642,7.10552801,176.56,176.53,108.1]
[1754663844643,10.01552801,176.56,176.53,108.1]
[1754663844944,7.10552801,176.55,176.54,2.97]
[1754663845742,7.10552801,176.55,176.54,8.6337]
[1754663845941,3.02601087,176.55,176.54,2.97]
[1754663846144,3.02601087,176.55,176.5,2.97]
[1754663846338,11.27550927,176.54,176.46,2.97]
[1754663846537,2.91,176.5,176.44,2.97]
[1754663846734,11.27550927,176.51,176.44,2.97]
[1754663846735,2.91,176.48,176.44,108.12]
[1754663846939,2.91,176.48,176.45,2.97]
[1754663847142,11.27550927,176.51,176.45,2.97]
[1754663847444,11.27550927,176.51,176.44,119.06]
[1754663847445,2.91,176.47,176.44,122.03]
[1754663847844,5.93184288,176.47,176.44,122.03]
[1754663848041,3.99694376,176.46,176.45,2.97]
[1754663849143,7.01872157,176.46,176.45,2.97]
[1754663849347,3.99694376,176.46,176.45,8.6366]
[1754663850750,0.03627289,176.48,176.47,2.97]
[1754663850943,4.02540569,176.48,176.47,2.97]
[1754663851138,4.02540569,176.48,176.47,8.6359]
[1754663851447,4.02540569,176.48,176.47,116.7959]
[1754663852651,3.9891328,176.53,176.51,2.97]
[1754663852844,6.8991328,176.52,176.51,108.18]
[1754663853851,3.9891328,176.52,176.51,111.15]
[1754663854648,3.9891328,176.52,176.51,108.18]
[1754663854856,6.8991328,176.52,176.51,108.18]
[1754663855054,3.9891328,176.52,176.48,113.8454]
[1754663855354,7.69679107,176.55,176.48,116.8154]
[1754663855355,6.8991328,176.51,176.48,116.8154]
[1754663855550,3.9891328,176.5,176.48,116.8154]
[1754663855761,3.9891328,176.49,176.48,116.8154]
[1754663856258,6.8991328,176.49,176.48,108.18]
[1754663856752,3.9891328,176.49,176.48,108.18]
[1754663856958,3.9891328,176.49,176.48,111.42]
[1754663857357,3.9891328,176.49,176.48,117.0856]
[1754663858451,3.9891328,176.49,176.48,111.42]
[1754663859154,2.91,176.48,176.43,3.24]
[1754663859458,6.8991328,176.47,176.43,3.24]
[1754663859655,3.9891328,176.46,176.43,3.24]
[1754663859953,3.9891328,176.45,176.44,8.9069]
[1754663860161,3.9891328,176.48,176.42,119.11]
[1754663860354,3.9891328,176.47,176.43,3.24]
[1754663860659,3.9891328,176.46,176.45,9.84049601]
[1754663860852,3.9891328,176.49,176.46,3.24]
[1754663861161,3.9891328,176.48,176.47,3.24]
[1754663861662,2.91,176.47,176.45,108.2]
[1754663861964,3.9891328,176.46,176.45,111.44]
[1754663863468,3.9891328,176.46,176.43,5.6672]
[1754663863653,2.91,176.44,176.42,10.93]
[1754663863854,6.8991328,176.43,176.42,10.88720107]
[1754663864050,2.91,176.42,176.39,5.6685]
[1754663864255,2.91,176.4,176.38,111.44]
[1754663864559,3.9891328,176.39,176.38,111.44]
[1754663864753,3.9891328,176.39,176.38,117.1087]
[1754663864954,3.9891328,176.39,176.38,108.2]
[1754663865260,6.8991328,176.39,176.37,0.04164024]
[1754663865562,6.8991328,176.38,176.37,0.04164024]
[1754663865864,3.9891328,176.39,176.38,3.24]
[1754663866162,3.9891328,176.43,176.38,3.24]
[1754663866359,3.9891328,176.42,176.39,108.2]
[1754663866560,2.91,176.44,176.4,3.24]
[1754663866561,3.9891328,176.41,176.4,3.24]
[1754663866864,3.9891328,176.43,176.39,108.23988371]
[1754663867058,3.9891328,176.42,176.41,8.9076]
[1754663867761,3.9891328,176.42,176.41,3.24]
[1754663869865,6.8991328,176.45,176.41,3.24]
[1754663870158,6.8991328,176.44,176.41,3.24]
[1754663870352,3.9891328,176.43,176.41,3.24]
[1754663870557,3.9891328,176.42,176.4,5.668]
[1754663870758,3.9891328,176.43,176.4,3.24]
[1754663871058,2.91,176.41,176.39,111.47988371]
[1754663871258,6.8991328,176.41,176.39,111.47988371]
[1754663871565,2.91,176.41,176.39,111.47988371]
[1754663871863,3.9891328,176.42,176.39,108.23988371]
[1754663872052,6.8991328,176.41,176.39,111.47988371]
[1754663872257,2.91,176.41,176.39,111.47988371]
[1754663872656,6.8991328,176.41,176.39,111.47988371]
[1754663872855,6.60049601,176.41,176.39,0.03988371]
[1754663873060,6.8991328,176.4,176.39,0.03988371]
[1754663873260,9.91649253,176.4,176.39,0.03988371]
[1754663873462,15.58469253,176.4,176.39,0.03988371]
[1754663873664,15.58469253,176.4,176.36,10.85]
[1754663873665,2.87,176.39,176.36,10.85]
[1754663873867,2.87,176.37,176.36,10.85]
[1754663874067,6.8591328,176.37,176.36,10.85]
[1754663874260,2.87,176.37,176.35,3.24]
[1754663874457,3.9891328,176.37,176.36,5.6695]
[1754663874660,3.9891328,176.37,176.36,8.9095]
[1754663874861,3.9891328,176.38,176.36,8.9095]
[1754663875058,3.9891328,176.37,176.36,3.24]
[1754663875862,3.9891328,176.37,176.36,8.9095]
[1754663876264,3.9891328,176.37,176.36,3.24]
[1754663876661,2.87,176.36,176.34,3.24]
[1754663876860,3.9891328,176.35,176.34,3.24]
[1754663877265,3.9891328,176.35,176.34,8.91]
[1754663878065,3.9891328,176.35,176.34,3.24]
[1754663880368,3.9891328,176.35,176.34,8.9101]
[1754663880966,3.9891328,176.35,176.34,3.24]
[1754663881568,3.9891328,176.35,176.34,8.9101]
[1754663881962,3.9891328,176.35,176.34,3.24]
[1754663882472,3.976296,176.35,176.32,3.24]
[1754663882774,3.976296,176.35,176.31,10.83]
[1754663882775,3.976296,176.34,176.33,3.24]
[1754663882974,6.856296,176.34,176.31,14.07]
[1754663883168,6.60049601,176.37,176.31,14.07]
[1754663883169,6.856296,176.33,176.31,14.07]
[1754663883371,3.976296,176.32,176.31,14.07]
[1754663883571,3.976296,176.32,176.31,3.24]
[1754663883764,0.666296,176.32,176.31,15.51159601]
[1754663883971,0.0391321,176.34,176.32,3.24]
[1754663884169,0.0391321,176.34,176.29,114.84049601]
[1754663884370,3.1591321,176.34,176.31,5.671]
[1754663884569,3.12,176.33,176.29,114.84049601]
[1754663884767,3.12,176.32,176.29,108.24]
[1754663884971,0.0391321,176.34,176.31,5.6708]
[1754663885176,6.13668302,176.33,176.29,108.24]
[1754663885373,6.13668302,176.33,176.29,119.05]
[1754663885768,6.13668302,176.32,176.29,119.05]
[1754663885974,3.12,176.32,176.29,119.05]
[1754663886169,3.01668302,176.31,176.3,8.9512]
[1754663886474,3.01668302,176.33,176.3,3.28]
[1754663886664,3.01668302,176.32,176.31,8.9509]
[1754663886868,3.01668302,176.32,176.29,122.33]
[1754663887077,6.21668302,176.31,176.29,122.33]
[1754663887264,3.01668302,176.33,176.29,119.05]
[1754663887468,3.2,176.31,176.29,122.33]
[1754663887670,3.01668302,176.3,176.29,122.33]
[1754663888076,3.01668302,176.3,176.29,117.1916]
[1754663888875,6.21668302,176.3,176.29,108.24]
[1754663889376,3.2,176.29,176.23,3.28]
[1754663889572,3.2,176.27,176.23,111.52]
[1754663889771,3.2,176.25,176.24,5.6731]
[1754663889971,3.01668302,176.25,176.22,10.8]
[1754663890170,3.01668302,176.24,176.23,5.6736]
[1754663890377,3.01668302,176.24,176.23,8.9536]
[1754663890565,3.01668302,176.25,176.24,3.28]
[1754663890769,3.01668302,176.25,176.24,15.55379601]
[1754663890973,0.04139503,176.26,176.24,6.60049601]
[1754663891181,0.04139503,176.26,176.24,2.6]
[1754663891472,3.2,176.25,176.24,108.22]
[1754663892178,3.24139503,176.26,176.24,110.82]
[1754663892373,3.2,176.25,176.24,108.22]
[1754663893072,0.04139503,176.26,176.24,110.82]
[1754663893269,3.2,176.25,176.24,108.22]
[1754663894272,3.2,176.25,176.24,103.9637912]
[1754663894768,3.2,176.25,176.24,109.6370912]
[1754663894971,0.04139503,176.26,176.24,106.5637912]
[1754663895275,0.04139503,176.26,176.24,103.9637912]
[1754663895276,3.2,176.25,176.24,103.9637912]
[1754663895870,7.11821558,176.25,176.24,103.9637912]
[1754663896376,7.11821558,176.25,176.22,10.8]
[1754663896377,3.2,176.24,176.22,10.8]
[1754663896577,7.11821558,176.23,176.22,10.8]
[1754663897074,3.2,176.22,176.2,108.26]
[1754663897378,3.2,176.2,176.11,6.60049601]
[1754663897575,3.2,176.18,176.12,108.24]
[1754663897880,3.2,176.15,176.12,110.84]
[1754663898081,7.11821558,176.14,176.12,108.24]
[1754663898283,7.11821558,176.13,176.12,113.9172]
[1754663898580,3.91821558,176.13,176.12,116.5172]
[1754663898880,1.31821558,176.13,176.12,116.5172]
[1754663899176,1.31821558,176.16,176.12,108.24]
[1754663899368,0.04185607,176.17,176.12,108.24]
[1754663899573,3.2,176.16,176.14,5.6763]
[1754663899765,0.04185607,176.17,176.15,108.26]
[1754663900179,0.04185607,176.17,176.16,5.6759]
[1754663901171,0.04185607,176.17,176.16,11.3559]
[1754663901568,3.2,176.25,176.24,5.6733]
[1754663901770,6.60049601,176.3,176.23,108.28]
[1754663901771,11.25013099,176.3,176.23,108.28]
[1754663902077,3.2,176.25,176.21,108.28]
[1754663902273,3.2,176.25,176.19,108.28]
[1754663902669,3.2,176.25,176.22,5.6739]
[1754663903074,2.94396598,176.27,176.2,0.03656951]
[1754663903277,3.2,176.26,176.2,0.03656951]
[1754663903673,3.2,176.26,176.24,5.6733]
[1754663903880,3.2,176.24,176.2,0.03656951]
[1754663904470,3.2,176.23,176.2,0.03656951]
[1754663904769,3.2,176.22,176.2,0.03656951]
[1754663904970,3.2,176.21,176.2,0.03656951]
[1754663905169,3.2,176.21,176.12,6.60049601]
[1754663905170,3.2,176.21,176.16,6.60049601]
[1754663905871,3.2,176.23,176.14,6.60049601]
[1754663906173,3.2,176.22,176.15,108.28]
[1754663906372,6.60049601,176.23,176.1,0.98810301]
[1754663906373,3.2,176.2,176.1,0.98810301]
[1754663906568,2.94396598,176.2,176.11,108.28]
[1754663906772,3.2,176.19,176.14,5.6763]
[1754663907170,3.2,176.19,176.11,108.28]
[1754663907380,3.2,176.19,176.15,5.676]
[1754663907778,3.2,176.19,176.11,108.28]
[1754663907970,3.2,176.19,176.12,6.60049601]
[1754663908382,3.2,176.18,176.17,5.6755]
[1754663909474,3.2,176.19,176.16,108.28]
[1754663910177,0.03671532,176.2,176.16,108.28]
[1754663910383,3.23671532,176.2,176.16,108.28]
[1754663910570,3.2,176.17,176.16,108.28]
[1754663911074,7.05706745,176.17,176.16,108.28]
[1754663911672,3.85706745,176.17,176.12,108.3]
[1754663911878,3.2,176.15,176.12,108.3]
[1754663912075,3.2,176.13,176.12,108.3]
[1754663912278,3.2,176.12,175.98,11.3633]
[1754663912591,7.05706745,176.11,176.01,0.98870658]
[1754663912778,7.05706745,176.1,176.06,6.60049601]
[1754663912974,7.05706745,176.1,176.01,0.98870658]
[1754663912975,7.05706745,176.09,176.07,108.34]
[1754663913175,7.09515386,176.08,176.07,108.34]
[1754663913586,7.05706745,176.08,176.07,108.34]
[1754663914282,3.2,176.07,176.05,108.34]
[1754663914476,7.05706745,176.06,176.05,108.34]
[1754663914681,3.85706745,176.08,176.05,108.34]
[1754663914880,3.2,176.06,176.05,108.34]
[1754663915090,7.05706745,176.06,176.05,108.34]
[1754663915382,3.2,176.05,176.04,10.75]
[1754663915691,3.2,176.07,176.04,10.75]
[1754663915878,3.85228613,176.06,176.05,12.27989601]
[1754663916081,3.85228613,176.08,176.05,6.60049601]
[1754663916378,3.84956591,176.08,176.07,6.60049601]
[1754663916580,3.84956591,176.11,176.07,6.60049601]
[1754663916885,3.8129964,176.14,176.1,6.60049601]
[1754663917083,10.32453498,176.19,176.11,5.6774]
[1754663917289,3.17,176.17,176.1,6.60049601]
[1754663917781,3.17,176.17,176.11,5.6773]
[1754663917982,3.17,176.17,176.12,0.04359417]
[1754663919189,7.81963498,176.17,176.12,0.04359417]
[1754663919389,3.17,176.17,176.12,0.04359417]
[1754663919684,3.17,176.16,176.12,6.64409018]
[1754663919885,3.17,176.16,176.12,0.04359417]
[1754663919886,3.17,176.14,176.12,0.04359417]
[1754663920092,4.64963498,176.13,176.0,6.64049601]
[1754663920284,4.64963498,176.13,175.91,11.3675]
[1754663920285,6.60049601,176.06,176.02,108.9]
[1754663920479,3.17,176.05,176.04,8.278]
[1754663920685,6.08974705,176.05,175.99,108.96]
[1754663920881,3.17,176.03,175.99,108.96]
[1754663921194,3.17,176.04,175.99,108.96]
[1754663921490,0.04339171,176.03,176.0,5.6808]
[1754663921695,3.17,176.01,176.0,114.6608]
[1754663921889,0.04339171,176.03,175.95,382.48874872]
[1754663921890,3.17,176.02,175.95,381.5]
[1754663922187,0.04339171,176.03,175.98,109.0]
[1754663922489,3.17,176.01,175.99,5.6812]
[1754663922690,3.17,176.01,175.98,109.04]
[1754663922890,0.04339171,176.03,175.98,109.04]
[1754663923189,3.17,176.02,176.0,5.6809]
[1754663923387,3.17,176.02,175.98,109.04]
[1754663923388,0.04339171,176.03,175.99,0.04363441]
[1754663923894,3.21339171,176.03,176.0,0.04]
[1754663924193,3.17,176.02,176.01,5.6807]
[1754663924593,0.04339171,176.03,175.99,0.04363441]
[1754663924791,0.04339171,176.03,176.0,114.661]
[1754663924792,3.17,176.01,176.0,114.661]
[1754663924988,3.17,176.02,176.0,108.98]
[1754663925187,3.17,176.02,175.99,5.72483441]
[1754663925391,0.04339171,176.03,176.0,109.14]
[1754663925890,0.04339171,176.03,175.99,0.04363441]
[1754663926094,3.17,176.02,175.99,109.14363441]
[1754663926290,6.64388772,176.03,175.99,109.14363441]
[1754663926599,3.17,176.0,175.99,109.14363441]
[1754663927994,9.77049601,176.0,175.99,0.04363441]
[1754663928186,3.17,176.0,175.99,0.04363441]
[1754663929894,3.82362165,176.02,175.99,0.04363441]
[1754663930096,3.17,176.01,175.99,0.04363441]
[1754663930394,3.17,176.0,175.99,0.04363441]
[1754663930892,3.17,176.0,175.99,5.72503441]
[1754663931088,3.17,176.02,176.0,0.04]
[1754663931290,3.17,176.02,176.0,109.2]
[1754663931800,3.17,176.01,176.0,109.2]
[1754663932000,3.17,176.01,176.0,114.881]
[1754663932393,0.04339171,176.03,176.01,0.04]
[1754663932594,6.73507484,176.09,176.02,0.04]
[1754663932800,4.64963498,176.13,176.01,6.60049601]
[1754663932801,1.35162165,176.12,176.08,6.60049601]
[1754663933100,6.08497824,176.17,176.11,0.04]
[1754663933302,3.17,176.16,176.1,6.60049601]
[1754663933594,6.60049601,176.14,176.04,0.04]
[1754663933796,3.17,176.11,176.01,6.60049601]
[1754663933993,3.17,176.11,176.03,5.6799]
[1754663933994,3.17,176.09,176.03,5.6799]
[1754663934194,3.17,176.08,176.02,109.38]
[1754663934396,6.08497824,176.11,176.05,6.64049601]
[1754663934594,3.17,176.11,176.05,6.64049601]
[1754663935103,3.17,176.11,176.06,5.71842787]
[1754663935304,3.17,176.11,176.07,109.6]
[1754663935600,3.17,176.09,176.07,109.6]
[1754663936106,7.56461322,176.15,176.07,109.6]
[1754663936401,3.17,176.14,176.07,109.6]
[1754663936592,3.17,176.14,176.07,116.20049601]
[1754663937803,3.17,176.14,176.07,109.6]
[1754663938303,7.81963498,176.14,176.07,109.6]
[1754663938507,3.17,176.13,176.07,109.6]
[1754663938799,3.17,176.13,176.07,115.2785]
[1754663939000,3.17,176.13,176.07,109.6]
[1754663939197,3.17,176.13,176.07,115.2785]
[1754663939405,3.17,176.13,176.07,109.6]
[1754663939797,3.17,176.13,176.08,5.6782]
[1754663939992,3.17,176.13,176.07,109.6]
[1754663940204,7.56461322,176.15,176.07,109.6]
[1754663940393,2.91497824,176.16,176.14,6.64049601]
[1754663940596,4.64963498,176.2,176.15,109.52]
[1754663940597,7.56461322,176.2,176.15,109.52]
[1754663940798,4.64963498,176.2,176.15,109.52]
[1754663941003,7.56461322,176.21,176.18,6.64049601]
[1754663941198,2.91497824,176.22,176.16,6.64235289]
[1754663941396,3.17,176.21,176.16,6.64235289]
[1754663941598,2.91497824,176.24,176.16,6.64235289]
[1754663941599,3.17,176.2,176.18,6.60049601]
[1754663942001,3.17,176.22,176.16,6.64235289]
[1754663942793,3.17,176.21,176.16,6.64235289]
[1754663943003,3.17,176.21,176.17,5.6755]
[1754663943195,7.56461322,176.24,176.18,6.60049601]
[1754663943401,3.17,176.23,176.18,6.60049601]
[1754663943800,3.17,176.22,176.16,6.60049601]
[1754663944005,4.64963498,176.21,176.19,0.04297115]
[1754663944201,3.17,176.2,176.19,0.04297115]
[1754663944706,3.17,176.19,176.13,109.44]
[1754663944900,4.64963498,176.18,176.13,109.44]
[1754663945099,3.17,176.17,176.13,109.44]
[1754663945404,7.81963498,176.16,176.07,6.60049601]
[1754663945599,3.17,176.14,176.08,109.44]
[1754663945800,10.32623498,176.14,176.08,109.44]
[1754663946104,6.08497824,176.13,176.08,109.44]
[1754663946303,3.17580537,176.13,176.09,0.08]
[1754663946502,0.03580537,176.13,176.11,6.60049601]
[1754663946708,0.03580537,176.13,176.11,241.68049601]
[1754663947005,0.03580537,176.13,176.12,5.7572]
[1754663947208,3.14,176.12,176.11,235.0]
[1754663947507,3.14,176.12,176.11,240.6775]
[1754663947696,3.14,176.12,176.08,235.0]
[1754663947897,0.03580537,176.13,176.07,109.5]
[1754663948094,3.17580537,176.13,176.09,5.6779]
[1754663948298,3.17580537,176.13,176.08,6.60049601]
[1754663948299,3.14,176.12,176.08,6.68049601]
[1754663948502,0.03580537,176.13,176.09,0.08]
[1754663948698,0.03580537,176.13,176.08,6.60049601]
[1754663948911,3.14,176.12,176.08,8.15]
[1754663949203,3.14,176.12,176.08,13.8282]
[1754663949408,3.14,176.12,176.08,8.15]
[1754663950203,0.03580537,176.13,176.08,8.15]
[1754663950504,0.03580537,176.13,176.08,13.8282]
[1754663950505,4.68544035,176.13,176.08,13.8282]
[1754663950709,3.14,176.1,176.08,8.15]
[1754663951407,3.14,176.11,176.08,8.24]
[1754663951706,2.93559019,176.12,176.1,6.60049601]
[1754663951906,0.03580537,176.13,176.11,109.4]
[1754663952100,3.14,176.12,176.11,109.4]
[1754663952306,0.03580537,176.13,176.11,109.4]
[1754663952809,3.17580537,176.13,176.11,109.4]
[1754663953209,3.14,176.12,176.11,109.4]
[1754663953515,3.17580537,176.13,176.11,115.0775]
[1754663953707,3.14,176.12,176.11,109.4]
[1754663954106,0.03580537,176.13,176.11,109.4]
[1754663954308,0.03580537,176.13,176.12,0.09]
[1754663954503,0.03580537,176.13,176.11,109.4]
[1754663954706,3.14,176.12,176.11,109.4]
[1754663954907,3.14,176.1,176.09,109.32]
[1754663955612,3.14,176.09,176.08,5.678]
[1754663955904,3.14,176.09,176.05,109.32]
[1754663956105,3.14,176.08,176.05,109.32]
[1754663956306,7.59243989,176.1,176.05,109.32]
[1754663956500,3.14,176.08,176.05,109.32]
[1754663956700,0.03917334,176.08,176.05,109.32]
[1754663956908,3.14,176.06,176.05,109.32]
[1754663958012,2.98197825,176.08,176.05,109.32]
[1754663958212,0.03917334,176.08,176.06,5.6791]
[1754663958514,0.03917334,176.08,176.06,6.60049601]
[1754663958814,3.17917334,176.08,176.06,6.60049601]
[1754663959001,0.03917334,176.08,176.07,5.6788]
[1754663959207,3.14,176.07,176.06,6.60049601]
[1754663959409,3.14,176.07,176.05,109.32]
[1754663959608,3.14,176.07,176.06,5.6791]
[1754663959807,3.17917334,176.08,176.05,109.41]
[1754663960411,0.03917334,176.08,176.06,6.69049601]
[1754663960712,0.03917334,176.08,176.07,0.09]
[1754663961026,0.03917334,176.08,176.07,5.7688]
[1754663961207,3.17917334,176.08,176.07,5.6788]
[1754663961408,0.03917334,176.08,176.07,5.6788]
[1754663961607,4.64963498,176.12,176.07,0.09]
[1754663961814,3.14,176.12,176.1,6.60049601]
[1754663962014,3.14,176.12,176.11,109.24]
[1754663962206,10.74349577,176.12,176.08,235.0]
[1754663962414,6.09386079,176.11,176.08,109.24]
[1754663962609,3.14,176.1,176.08,109.24]
[1754663962811,3.14,176.09,176.08,109.24]
[1754663963310,2.95386079,176.11,176.08,115.84049601]
[1754663963509,3.14,176.1,176.08,115.84049601]
[1754663963704,3.14,176.1,176.09,5.6781]
[1754663964512,2.95386079,176.11,176.1,5.6778]
[1754663964808,3.14,176.11,176.1,240.6778]
[1754663965013,4.64963498,176.12,176.08,344.24]
[1754663965215,3.14,176.1,176.07,109.18079157]
[1754663965410,7.60349577,176.1,176.07,0.04079157]
[1754663965616,7.60349577,176.09,176.07,0.04079157]
[1754663965918,6.09386079,176.08,176.07,0.04079157]
[1754663966110,3.14,176.08,176.07,0.04079157]
[1754663966616,10.74016561,176.08,176.07,0.04079157]
[1754663967319,3.14,176.07,176.02,235.0]
[1754663967511,3.14,176.05,176.02,109.12]
[1754663968010,3.14,176.04,176.02,109.12]
[1754663968211,3.14,176.03,176.02,109.12]
[1754663971909,3.14,176.02,175.97,5.61]
[1754663972109,3.14,176.02,175.98,108.94]
[1754663972110,3.14,176.0,175.98,108.94]
[1754663972314,7.27120879,175.99,175.98,108.94]
[1754663972713,4.1307689,175.99,175.94,6.60049601]
[1754663972913,3.14,175.96,175.95,109.06]
[1754663973114,7.2707689,175.96,175.88,6.60049601]
[1754663973417,4.1307689,175.95,175.9,3.02]
[1754663973617,7.31247553,175.94,175.92,3.02]
[1754663973819,4.1307689,175.93,175.91,109.1]
[1754663974020,4.1307689,175.92,175.91,112.12]
[1754663974220,4.1307689,175.92,175.91,117.8037]
[1754663974715,4.1307689,175.92,175.91,5.6837]
[1754663974919,4.1307689,175.92,175.91,117.7837]
[1754663975216,4.1307689,175.92,175.91,114.7637]
[1754663975423,7.2707689,175.92,175.91,114.7637]
[1754663975617,4.1307689,175.92,175.91,5.6837]
[1754663975917,4.1307689,175.92,175.91,8.7037]
[1754663976118,4.1307689,175.92,175.91,5.6837]
[1754663976319,4.1307689,175.92,175.91,9.72049601]
[1754663976619,4.1307689,175.92,175.91,118.74049601]
[1754663976823,0.04170663,175.94,175.91,115.62049601]
[1754663977123,0.04170663,175.94,175.93,9.72049601]
[1754663977425,2.95131375,175.97,175.94,3.12]
[1754663977627,2.95131375,175.97,175.91,109.06349202]
[1754663977628,2.95131375,175.99,175.96,3.12]
[1754663977819,2.95131375,176.01,175.98,3.12]
[1754663978019,3.22238811,176.0,175.99,3.12]
[1754663978215,6.37238811,176.01,175.99,3.12]
[1754663978415,3.22238811,176.0,175.99,15.40159601]
[1754663978624,6.25791432,176.06,176.0,3.12]
[1754663978625,3.22238811,176.03,176.0,3.12]
[1754663978828,4.67522222,176.05,175.98,0.04084643]
[1754663978829,3.22238811,176.05,176.02,6.60049601]
[1754663979027,3.15,176.06,176.04,3.12]
[1754663979325,3.22507837,176.05,176.04,15.40019601]
[1754663979521,3.22507837,176.08,176.04,115.76049601]
[1754663979716,3.22507837,176.07,176.06,12.27929601]
[1754663979923,3.22507837,176.08,176.06,15.39929601]
[1754663980228,3.15,176.06,176.04,109.14]
[1754663980421,3.22507837,176.05,176.03,0.04161231]
[1754663980628,6.37507837,176.04,176.03,0.04161231]
[1754663981422,3.15,176.04,176.03,0.04161231]
[1754663981629,6.37507837,176.04,176.03,0.04161231]
[1754663981823,3.22507837,176.04,175.99,109.16]
[1754663982023,3.15,176.02,175.99,112.28]
[1754663982224,6.37507837,176.02,176.0,5.681]
[1754663982524,3.15,176.02,175.99,112.28]
[1754663982827,3.22507837,176.03,175.99,109.16]
[1754663983023,3.15,176.01,175.99,109.16]
[1754663983223,6.37507837,176.01,175.98,109.08]
[1754663983423,3.15,176.0,175.98,109.08]
[1754663983724,3.15,175.99,175.98,109.08]
[1754663984126,6.37507837,176.01,175.98,112.2]
[1754663984429,6.37507837,176.01,175.98,347.2]
[1754663984628,0.03985015,176.02,175.99,3.12]
[1754663985127,3.18985015,176.02,176.0,3.12]
[1754663985522,3.18985015,176.02,176.0,8.8008]
[1754663985723,0.03985015,176.02,175.99,6.60049601]
[1754663985927,3.18985015,176.02,175.99,6.60049601]
[1754663986231,3.15,176.01,175.99,5.6814]
[1754663986436,3.26492852,176.02,175.98,109.08]
[1754663986631,0.03985015,176.02,176.01,5.6807]
[1754663986934,0.03985015,176.02,176.0,3.12]
[1754663987225,6.41492852,176.02,176.0,3.12]
[1754663987433,0.03985015,176.02,176.01,8.8007]
[1754663987928,0.03985015,176.02,176.01,352.8607]
[1754663988826,3.23018315,176.06,176.05,5.6794]
[1754663989023,3.23018315,176.06,176.05,109.02]
[1754663989024,10.50903167,176.06,176.05,109.02]
[1754663990333,10.50903167,176.06,176.03,6.60049601]
[1754663990535,3.23018315,176.05,176.04,114.66136389]
[1754663990734,3.23319374,176.05,176.04,112.10166389]
[1754663991132,3.23319374,176.05,176.04,117.78136389]